bitfinex-derivatives/quotes_BTCF0:USTF0_20250320
["timestamp","ask_amount","ask_price","bid_price","bid_amount"]
[1742490601980,0.0594262,84180.0,84179.0,0.2282668]
[1742490602174,0.0594262,84180.0,84179.0,0.24159951]
[1742490602381,0.0594262,84180.0,84179.0,0.2282668]
[1742490602573,0.0594262,84180.0,84179.0,0.4336668]
[1742490603179,0.0594141,84196.0,84191.0,0.1188345]
[1742490603370,0.0594141,84196.0,84179.0,0.4126857]
[1742490603371,0.42428111,84193.0,84179.0,0.14395239]
[1742490603571,0.1782733,84183.0,84182.0,0.1782646]
[1742490603767,0.0594235,84183.0,84182.0,0.21872557]
[1742490603974,0.0201,84183.0,84182.0,0.3242472]
[1742490604166,0.36486531,84193.0,84192.0,0.1188331]
[1742490604372,0.40736531,84193.0,84192.0,0.4796331]
[1742490604678,0.38496531,84193.0,84192.0,0.3608]
[1742490604876,0.46486531,84193.0,84192.0,0.3608]
[1742490605080,0.0594186,84190.0,84182.0,0.36957399]
[1742490605281,0.1188444,84184.0,84183.0,0.3259458]
[1742490605475,0.1389444,84184.0,84183.0,0.3259458]
[1742490605979,0.2188444,84184.0,84183.0,0.2071]
[1742490606181,0.1389444,84184.0,84183.0,0.2071]
[1742490606476,0.1188613,84172.0,84171.0,0.00017828]
[1742490606682,0.2188613,84172.0,84171.0,0.36097828]
[1742490606874,0.1188613,84172.0,84171.0,0.47984098]
[1742490607077,0.1188613,84172.0,84171.0,0.48889038]
[1742490607672,0.1188613,84172.0,84171.0,0.37002768]
[1742490607976,0.1188613,84172.0,84171.0,0.37102768]
[1742490608173,0.1188613,84172.0,84171.0,0.36197828]
[1742490608369,0.1188613,84172.0,84171.0,0.00117828]
[1742490608577,0.1188783,84160.0,84159.0,0.1011]
[1742490608972,0.1094372,84164.0,84159.0,0.1011]
[1742490609176,0.1188769,84161.0,84160.0,0.1035]
[1742490609983,0.1188769,84161.0,84160.0,0.2046]
[1742490610179,0.1188853,84155.0,84154.0,0.36986367]
[1742490610381,0.2516453,84155.0,84154.0,0.3608]
[1742490610587,0.1188882,84153.0,84148.0,0.1188942]
[1742490610778,0.1188882,84153.0,84150.0,0.1188924]
[1742490610978,0.1188882,84153.0,84151.0,0.1011]
[1742490611282,0.1188882,84153.0,84144.0,0.3608]
[1742490611682,0.1188995,84145.0,84144.0,0.3608]
[1742490611889,0.1188995,84145.0,84114.0,0.059471]
[1742490611890,0.1189122,84136.0,84135.0,0.1005]
[1742490612078,0.3515522,84136.0,84135.0,0.22999514]
[1742490612485,0.3515522,84136.0,84135.0,0.22058154]
[1742490612687,0.3515522,84136.0,84135.0,0.01334752]
[1742490613078,0.2527522,84136.0,84135.0,0.01334752]
[1742490613278,0.2839522,84136.0,84135.0,0.12943906]
[1742490613778,0.3515522,84136.0,84135.0,0.02893906]
[1742490614173,0.3515522,84136.0,84135.0,0.02993906]
[1742490614377,0.2716522,84136.0,84135.0,0.02993906]
[1742490615082,0.2515522,84136.0,84135.0,0.01659154]
[1742490615282,0.1189235,84128.0,84127.0,0.00017828]
[1742490615487,0.2516435,84128.0,84127.0,0.00017828]
[1742490615988,0.2516435,84128.0,84127.0,0.11910318]
[1742490616379,0.2516435,84128.0,84127.0,0.00017828]
[1742490616885,0.2516435,84128.0,84127.0,0.00317828]
[1742490620291,0.3516435,84128.0,84127.0,0.00317828]
[1742490620492,0.4534435,84128.0,84127.0,0.00317828]
[1742490622292,0.3958435,84128.0,84127.0,0.00317828]
[1742490622507,0.4534435,84128.0,84127.0,0.00317828]
[1742490622792,0.4235435,84128.0,84127.0,0.00317828]
[1742490622987,0.5034435,84128.0,84127.0,0.00317828]
[1742490623185,0.1189292,84124.0,84123.0,0.3608]
[1742490623381,0.05,84121.0,84116.0,0.3608]
[1742490623587,0.139039,84117.0,84116.0,0.3608]
[1742490623985,0.351839,84117.0,84116.0,0.3608]
[1742490624181,0.351839,84117.0,84110.0,0.205]
[1742490624182,0.1189475,84111.0,84110.0,0.205]
[1742490624393,0.2511475,84111.0,84110.0,0.205]
[1742490624691,0.4750475,84111.0,84110.0,0.205]
[1742490625097,0.4750475,84111.0,84108.0,0.00017828]
[1742490625098,0.1189504,84109.0,84108.0,0.00017828]
[1742490625291,0.2189504,84109.0,84108.0,0.00017828]
[1742490625486,0.35382894,84109.0,84108.0,0.00017828]
[1742490625694,0.1189574,84104.0,84102.0,0.3608]
[1742490625896,0.0594819,84100.0,84096.0,0.1013]
[1742490626192,0.1189673,84097.0,84096.0,0.1013]
[1742490626498,0.1300673,84097.0,84096.0,0.1013]
[1742490626793,0.1189673,84097.0,84096.0,0.2202687]
[1742490627095,0.1189673,84097.0,84096.0,0.3241687]
[1742490627284,0.1189673,84097.0,84096.0,0.2052]
[1742490627489,0.3639673,84097.0,84096.0,0.2052]
[1742490627687,0.13192,84097.0,84096.0,0.3241687]
[1742490627894,0.13392,84097.0,84096.0,0.3241687]
[1742490628286,0.2528873,84097.0,84096.0,0.3241687]
[1742490628886,0.0594772,84107.0,84096.0,0.21429653]
[1742490629194,0.23192,84104.0,84096.0,0.27377983]
[1742490629389,0.1784502,84100.0,84099.0,0.1189645]
[1742490629586,0.1784502,84100.0,84099.0,0.2197645]
[1742490629786,0.16513077,84120.0,84099.0,0.2197645]
[1742490629787,0.1189603,84103.0,84102.0,0.1189588]
[1742490629985,0.1189603,84103.0,84102.0,0.2197588]
[1742490630488,0.49293828,84105.0,84104.0,0.1189574]
[1742490630489,0.00017828,84105.0,84104.0,0.1189574]
[1742490630696,0.00017828,84105.0,84104.0,0.3689574]
[1742490631099,0.1189348,84121.0,84120.0,0.1189334]
[1742490631593,0.3608,84122.0,84121.0,0.1189334]
[1742490631792,0.479732,84122.0,84121.0,0.1189334]
[1742490632093,0.118932,84122.0,84121.0,0.1189334]
[1742490632490,0.1189334,84121.0,84120.0,0.2221348]
[1742490633094,0.2178334,84121.0,84120.0,0.2221348]
[1742490633399,0.1189334,84121.0,84120.0,0.23308782]
[1742490633787,0.1189334,84121.0,84120.0,0.11415302]
[1742490634187,0.1189334,84121.0,84120.0,0.23308782]
[1742490634394,0.1199334,84121.0,84120.0,0.23308782]
[1742490634789,0.1199334,84121.0,84120.0,0.33278782]
[1742490636798,0.1199334,84121.0,84120.0,0.21385302]
[1742490636993,0.4282334,84121.0,84120.0,0.21385302]
[1742490637187,0.4282334,84121.0,84120.0,0.11065302]
[1742490637506,0.3294334,84121.0,84120.0,0.0997]
[1742490637693,0.4282334,84121.0,84120.0,0.6751]
[1742490637894,0.3294334,84121.0,84120.0,0.6751]
[1742490638094,0.4282334,84121.0,84120.0,0.6751]
[1742490639699,0.3282334,84121.0,84120.0,0.6751]
[1742490639901,0.4282334,84121.0,84120.0,0.6884238]
[1742490640204,0.1189309,84123.0,84122.0,0.1783945]
[1742490640402,0.2189309,84123.0,84122.0,0.1917183]
[1742490641094,0.2189309,84123.0,84122.0,0.20703946]
[1742490641297,0.2199309,84123.0,84122.0,0.20703946]
[1742490641698,0.3199309,84123.0,84122.0,0.08811026]
[1742490641893,0.4262309,84123.0,84122.0,0.08811026]
[1742490642099,0.4262309,84123.0,84122.0,0.02864496]
[1742490643099,0.5562709,84123.0,84122.0,0.02864496]
[1742490643494,0.6062709,84123.0,84122.0,0.02864496]
[1742490643695,0.5074709,84123.0,84122.0,0.02864496]
[1742490644003,0.6062709,84123.0,84122.0,0.0133238]
[1742490644403,0.1189334,84121.0,84120.0,0.6757]
[1742490644603,0.1189334,84121.0,84120.0,0.6751]
[1742490644796,0.4341334,84121.0,84120.0,0.68838524]
[1742490646204,0.4351334,84121.0,84120.0,0.68838524]
[1742490646396,0.4351334,84121.0,84120.0,0.68836877]
[1742490647499,0.3363334,84121.0,84120.0,0.68836877]
[1742490647696,0.37837898,84121.0,84120.0,0.68836877]
[1742490647900,0.44597898,84121.0,84120.0,0.68836877]
[1742490648310,0.34717898,84121.0,84120.0,0.68836877]
[1742490648603,0.91784558,84121.0,84094.0,0.01086649]
[1742490648803,0.1189687,84096.0,84095.0,0.01326774]
[1742490649103,0.2899087,84096.0,84095.0,0.13223794]
[1742490649605,0.3484087,84096.0,84095.0,0.13223794]
[1742490649808,0.4488087,84096.0,84095.0,0.34213794]
[1742490650105,0.5516087,84096.0,84095.0,0.34213794]
[1742490650307,0.5516087,84096.0,84095.0,0.11856774]
[1742490650605,0.2784651,84091.0,84090.0,0.1189771]
[1742490650794,0.6392651,84091.0,84090.0,0.11650844]
[1742490650994,0.6392651,84091.0,84090.0,0.13165985]
[1742490651197,0.6392651,84091.0,84090.0,0.02845985]
[1742490651397,0.8409651,84091.0,84090.0,0.02845985]
[1742490651600,0.8409651,84091.0,84090.0,0.14743705]
[1742490651905,0.7409651,84091.0,84090.0,0.14743705]
[1742490652103,0.6814758,84091.0,84090.0,0.14743705]
[1742490652403,0.7814758,84091.0,84090.0,0.35132363]
[1742490653007,0.7814758,84091.0,84090.0,0.37596541]
[1742490653706,0.7814758,84091.0,84090.0,0.25698821]
[1742490653907,0.7814758,84091.0,84090.0,0.37596541]
[1742490654498,0.7814758,84091.0,84090.0,0.27626541]
[1742490655008,0.7814758,84091.0,84090.0,0.15728821]
[1742490655204,0.7814758,84091.0,84090.0,0.05408821]
[1742490655395,0.8777758,84091.0,84090.0,0.05408821]
[1742490655602,0.8777758,84091.0,84090.0,0.02944643]
[1742490656311,0.8777758,84091.0,84090.0,0.01615141]
[1742490656702,0.8777758,84091.0,84090.0,0.001]
[1742490658103,0.1189801,84088.0,84087.0,0.00017828]
[1742490658308,0.1189928,84079.0,84078.0,0.0983]
[1742490658505,0.5797928,84079.0,84078.0,0.11161482]
[1742490658705,0.7369928,84079.0,84078.0,0.11161482]
[1742490658905,0.1189999,84074.0,84073.0,0.00876148]
[1742490659206,0.2189999,84074.0,84073.0,0.01332771]
[1742490659410,0.4121999,84074.0,84073.0,0.02865986]
[1742490659710,0.4121999,84074.0,84073.0,0.0286538]
[1742490660109,0.3761999,84074.0,84073.0,0.1476551]
[1742490660311,0.3121999,84074.0,84073.0,0.1476551]
[1742490660503,0.3121999,84074.0,84073.0,0.3478551]
[1742490660700,0.4121999,84074.0,84073.0,0.3478551]
[1742490660899,0.4121999,84074.0,84073.0,0.0286538]
[1742490661501,0.4121999,84074.0,84073.0,0.0336538]
[1742490662208,0.4121999,84074.0,84073.0,0.03365007]
[1742490662601,0.4121999,84074.0,84073.0,0.03364622]
[1742490662797,0.3445999,84074.0,84073.0,0.03364622]
[1742490663005,0.3445999,84074.0,84065.0,0.00017838]
[1742490663006,0.1190112,84066.0,84065.0,0.00017838]
[1742490663306,0.7080112,84066.0,84065.0,0.00017838]
[1742490663504,0.3608,84066.0,84065.0,0.11919098]
[1742490663705,0.2694594,84075.0,84074.0,0.1784984]
[1742490664010,0.1189985,84075.0,84074.0,0.1784984]
[1742490664398,0.3608,84076.0,84075.0,0.1189985]
[1742490664606,0.1189934,84079.0,84078.0,0.059497]
[1742490664804,0.1189934,84079.0,84078.0,0.07278316]
[1742490665003,0.2189934,84079.0,84078.0,0.07278316]
[1742490665707,0.00017838,84082.0,84080.0,0.1784856]
[1742490665902,0.11916728,84082.0,84081.0,0.13225826]
[1742490666107,0.00017838,84082.0,84081.0,0.14328377]
[1742490666509,0.11916698,84082.0,84081.0,0.14328377]
[1742490668506,0.21916698,84082.0,84081.0,0.02429377]
[1742490668808,0.41706698,84082.0,84081.0,0.02429362]
[1742490669012,0.41706698,84082.0,84081.0,0.01102551]
[1742490669213,0.41706698,84082.0,84081.0,0.13225712]
[1742490669410,0.11916698,84082.0,84081.0,0.13425712]
[1742490669915,0.15156698,84082.0,84081.0,0.13425712]
[1742490670115,0.22166698,84082.0,84081.0,0.13425712]
[1742490670307,0.32166698,84082.0,84081.0,0.13425712]
[1742490670508,0.22166698,84082.0,84081.0,0.13425712]
[1742490670712,0.22166698,84082.0,84081.0,0.14540254]
[1742490671101,0.00017838,84082.0,84081.0,0.14540254]
[1742490671417,0.11916698,84082.0,84081.0,0.14540254]
[1742490672110,0.32406698,84082.0,84081.0,0.14540254]
[1742490672612,0.22166698,84082.0,84081.0,0.14542468]
[1742490672811,0.11916698,84082.0,84081.0,0.14542468]
[1742490673118,0.21916698,84082.0,84081.0,0.14542468]
[1742490673414,0.41786698,84082.0,84081.0,0.01528926]
[1742490673614,0.35026698,84082.0,84081.0,0.01528926]
[1742490673810,0.41786698,84082.0,84081.0,0.01528926]
[1742490674213,0.35026698,84082.0,84081.0,0.01528926]
[1742490674518,0.41786698,84082.0,84081.0,0.01528926]
[1742490675415,0.41786698,84082.0,84081.0,0.12099]
[1742490675617,0.54458698,84082.0,84081.0,0.13425598]
[1742490675815,0.44578698,84082.0,84081.0,0.01526598]
[1742490676014,0.54458698,84082.0,84081.0,0.0170365]
[1742490676423,0.48528698,84082.0,84081.0,0.03031961]
[1742490676620,0.54458698,84082.0,84081.0,0.03031961]
[1742490676812,0.1190112,84066.0,84056.0,0.12656]
[1742490677016,0.0595031,84070.0,84069.0,0.1785089]
[1742490677218,0.1568031,84070.0,84069.0,0.1785089]
[1742490677417,0.1568031,84070.0,84069.0,0.20439042]
[1742490678214,0.1568031,84070.0,84069.0,0.2196633]
[1742490678422,0.2574031,84070.0,84069.0,0.2196633]
[1742490678717,0.2574031,84070.0,84069.0,0.20439042]
[1742490678917,0.2908031,84070.0,84069.0,0.03088152]
[1742490679117,0.2908031,84070.0,84069.0,0.14988852]
[1742490679118,0.3584031,84070.0,84069.0,0.14988852]
[1742490679520,0.3584031,84070.0,84069.0,0.03088152]
[1742490680016,0.3584031,84070.0,84069.0,0.14988852]
[1742490680217,0.3584031,84070.0,84069.0,0.25048852]
[1742490680416,0.3584031,84070.0,84069.0,0.34528852]
[1742490680610,0.3584031,84070.0,84069.0,0.13148152]
[1742490680811,0.2586031,84070.0,84069.0,0.24548852]
[1742490681014,0.3574031,84070.0,84069.0,0.24548852]
[1742490681213,0.3574031,84070.0,84069.0,0.14488852]
[1742490681418,0.3574031,84070.0,84069.0,0.02588152]
[1742490681823,0.2586031,84070.0,84069.0,0.02588152]
[1742490682022,0.3574031,84070.0,84069.0,0.16958317]
[1742490682434,0.2574031,84070.0,84069.0,0.36958317]
[1742490682726,0.3574031,84070.0,84069.0,0.36958317]
[1742490683225,0.0973,84070.0,84069.0,0.38549669]
[1742490683425,0.22662,84077.0,84076.0,0.118997]
[1742490683619,0.1968,84077.0,84076.0,0.118997]
[1742490683925,0.3157972,84077.0,84076.0,0.22779114]
[1742490684114,0.3157972,84077.0,84076.0,0.24394225]
[1742490684322,0.4202977,84078.0,84076.0,0.24394225]
[1742490684323,0.3608,84078.0,84077.0,0.1189956]
[1742490684627,0.5816942,84078.0,84077.0,0.13514671]
[1742490684827,0.6756942,84078.0,84077.0,0.13514671]
[1742490685028,0.7756942,84078.0,84077.0,0.15024346]
[1742490685221,0.7756942,84078.0,84077.0,0.17566222]
[1742490685222,0.7080942,84078.0,84077.0,0.17566222]
[1742490685422,0.6756942,84078.0,84077.0,0.15935153]
[1742490685617,0.6756942,84078.0,84077.0,0.17566391]
[1742490686833,0.6756942,84078.0,84077.0,0.17571847]
[1742490687530,0.4797942,84078.0,84077.0,0.17571847]
[1742490687728,0.6793942,84078.0,84077.0,0.17571847]
[1742490688118,0.6793942,84078.0,84077.0,0.19740399]
[1742490688323,0.6773942,84078.0,84077.0,0.22488578]
[1742490688523,0.6783942,84078.0,84077.0,0.22488578]
[1742490689021,0.6783942,84078.0,84077.0,0.27148234]
[1742490689219,0.7091942,84078.0,84077.0,0.12500495]
[1742490689531,0.7097942,84078.0,84077.0,0.04490308]
[1742490689731,0.1190112,84066.0,84063.0,0.02761399]
[1742490690037,0.2190112,84066.0,84065.0,0.11919098]
[1742490690232,0.2190112,84066.0,84065.0,0.146784]
[1742490690529,0.3131112,84066.0,84065.0,0.00017838]
[1742490690929,0.3131112,84066.0,84059.0,0.21325326]
[1742490690930,0.1190197,84060.0,84059.0,0.21325326]
[1742490691126,0.6474997,84060.0,84059.0,0.21325326]
[1742490691322,0.8007997,84060.0,84059.0,0.21325326]
[1742490691826,0.7331997,84060.0,84059.0,0.21325326]
[1742490692133,0.0595166,84051.0,84047.0,0.35510942]
[1742490692326,0.4798367,84048.0,84047.0,0.35510942]
[1742490692527,0.4798367,84048.0,84044.0,0.01118605]
[1742490692528,0.0595197,84047.0,84044.0,0.01118605]
[1742490692729,0.1190409,84045.0,84044.0,0.07070655]
[1742490692932,0.1190409,84045.0,84044.0,0.0595205]
[1742490692933,0.2190409,84045.0,84044.0,0.0595205]
[1742490693124,0.2190409,84045.0,84044.0,0.08115448]
[1742490693325,0.2190409,84045.0,84044.0,0.0595205]
[1742490693527,0.1,84045.0,84044.0,0.0595205]
[1742490693832,0.1785495,84052.0,84051.0,0.119031]
[1742490694530,0.2785495,84052.0,84051.0,0.119031]
[1742490694732,0.1190353,84050.0,84049.0,0.1190348]
[1742490694931,0.2190353,84050.0,84049.0,0.1190348]
[1742490695439,0.1190353,84050.0,84049.0,0.1190348]
[1742490695737,0.0595156,84052.0,84051.0,0.1190324]
[1742490695927,0.48000798,84053.0,84052.0,0.119031]
[1742490696123,0.48000798,84053.0,84052.0,0.14063267]
[1742490696334,0.48000798,84053.0,84052.0,0.119031]
[1742490698028,0.17652788,84059.0,84058.0,0.1190225]
[1742490698231,0.39036095,84065.0,84064.0,0.119014]
[1742490698540,0.44986975,84065.0,84064.0,0.119014]
[1742490699328,0.0595091,84062.0,84059.0,0.0595102]
[1742490699632,0.1190197,84060.0,84059.0,0.0595102]
[1742490699835,0.1190197,84060.0,84059.0,0.08121466]
[1742490700435,0.1190197,84060.0,84059.0,0.04884497]
[1742490700827,0.1190197,84060.0,84059.0,0.02714051]
[1742490701136,0.2142197,84060.0,84059.0,0.02714051]
[1742490701326,0.3158197,84060.0,84059.0,0.02714051]
[1742490701526,0.3158197,84060.0,84059.0,0.04445145]
[1742490701527,0.3168197,84060.0,84059.0,0.04445145]
[1742490701728,0.3168197,84060.0,84059.0,0.05801154]
[1742490702638,0.3168197,84060.0,84059.0,0.36223264]
[1742490702840,0.3168197,84060.0,84059.0,0.26016662]
[1742490703235,0.3168197,84060.0,84059.0,0.24285568]
[1742490704032,0.4168197,84060.0,84059.0,0.24285568]
[1742490704231,0.4168197,84060.0,84059.0,0.05765568]
[1742490704433,0.4168197,84060.0,84059.0,0.04409559]
[1742490704834,0.3827197,84060.0,84059.0,0.01695508]
[1742490705125,0.4168197,84060.0,84059.0,0.01695508]
[1742490705531,0.4668197,84060.0,84059.0,0.01695508]
[1742490706342,0.4168197,84060.0,84059.0,0.01695508]
[1742490706640,0.3580197,84060.0,84059.0,0.01695508]
[1742490706940,0.4168197,84060.0,84059.0,0.01695508]
[1742490707540,0.3680197,84060.0,84059.0,0.01695508]
[1742490707741,0.4668197,84060.0,84059.0,0.01695508]
[1742490709030,0.3680197,84060.0,84059.0,0.01695508]
[1742490709226,0.4668197,84060.0,84059.0,0.01695508]
[1742490710142,0.4168197,84060.0,84059.0,0.01695508]
[1742490711140,0.3180197,84060.0,84059.0,0.01695508]
[1742490711337,0.4168197,84060.0,84059.0,0.01695508]
[1742490711537,0.4168197,84060.0,84059.0,0.11465508]
[1742490711939,0.4168197,84060.0,84059.0,0.01695508]
[1742490712533,0.4668197,84060.0,84059.0,0.01695508]
[1742490713145,0.3577197,84060.0,84059.0,0.01695508]
[1742490713547,0.4668197,84060.0,84059.0,0.01695508]
[1742490714047,0.4077197,84060.0,84059.0,0.01695508]
[1742490714244,0.3577197,84060.0,84059.0,0.01695508]
[1742490714440,0.3680197,84060.0,84059.0,0.01695508]
[1742490714740,0.1190239,84057.0,84056.0,0.00017838]
[1742490714942,0.119031,84052.0,84051.0,0.0971]
[1742490715141,0.756831,84052.0,84051.0,0.11056753]
[1742490715342,0.756831,84052.0,84051.0,0.0971]
[1742490715548,0.1690324,84051.0,84050.0,0.0967]
[1742490715747,0.1190324,84051.0,84050.0,0.0967]
[1742490715944,0.3081324,84051.0,84050.0,0.0967]
[1742490716448,0.3093324,84051.0,84050.0,0.0967]
[1742490716649,0.5350124,84051.0,84050.0,0.0967]
[1742490716844,0.4362124,84051.0,84050.0,0.0967]
[1742490717041,0.5350124,84051.0,84050.0,0.11017617]
[1742490717438,0.5850124,84051.0,84050.0,0.11017617]
[1742490717636,0.5850124,84051.0,84050.0,0.11217617]
[1742490718040,0.5258124,84051.0,84050.0,0.11217617]
[1742490718239,0.4764124,84051.0,84050.0,0.11217617]
[1742490718553,0.5350124,84051.0,84050.0,0.11217617]
[1742490718848,0.5349624,84051.0,84050.0,0.11217617]
[1742490719242,0.4361624,84051.0,84050.0,0.11217617]
[1742490719646,0.4361624,84051.0,84050.0,0.1386385]
[1742490719839,0.5349624,84051.0,84050.0,0.1386385]
[1742490720444,0.5349624,84051.0,84050.0,0.11217617]
[1742490720445,0.5849624,84051.0,84050.0,0.11217617]
[1742490721050,0.5349624,84051.0,84050.0,0.11217617]
[1742490721437,0.0595139,84055.0,84050.0,0.13373123]
[1742490721641,0.0595139,84055.0,84054.0,0.1190282]
[1742490721841,0.1785376,84057.0,84055.0,0.0595133]
[1742490722042,0.1785376,84057.0,84056.0,0.05172545]
[1742490722246,0.0595056,84066.0,84065.0,0.119007]
[1742490722441,0.0595056,84066.0,84065.0,0.18186401]
[1742490722648,0.36503911,84070.0,84069.0,0.119007]
[1742490722849,0.36503911,84070.0,84069.0,0.15403223]
[1742490723051,0.36503911,84070.0,84069.0,0.36189685]
[1742490723251,0.36503911,84070.0,84069.0,0.36189327]
[1742490723554,0.36503911,84070.0,84069.0,0.37134935]
[1742490723952,0.36503911,84070.0,84069.0,0.38795763]
[1742490724255,0.36503911,84070.0,84069.0,0.36640364]
[1742490724549,0.28141279,84075.0,84072.0,0.1190027]
[1742490724748,0.0594912,84087.0,84072.0,0.6672479]
[1742490724749,0.11505069,84087.0,84072.0,0.6672479]
[1742490724952,0.05555949,84087.0,84086.0,0.1189829]
[1742490725149,0.0594801,84102.0,84101.0,0.1189603]
[1742490725339,0.1189631,84100.0,84099.0,0.1784453]
[1742490725538,0.1189631,84100.0,84099.0,0.13234866]
[1742490726046,0.47072909,84100.0,84099.0,0.13234866]
[1742490726250,0.47072909,84100.0,84099.0,0.13234844]
[1742490726454,0.47072909,84100.0,84099.0,0.13234819]
[1742490727349,0.47072909,84100.0,84099.0,0.1189645]
[1742490727651,0.47572909,84100.0,84099.0,0.13619868]
[1742490727849,0.47572909,84100.0,84099.0,0.15619585]
[1742490728043,0.47572909,84100.0,84099.0,0.16958869]
[1742490728241,0.47572909,84100.0,84099.0,0.13996167]
[1742490728749,0.005,84100.0,84099.0,0.13996167]
[1742490728951,0.005,84100.0,84099.0,0.15332629]
[1742490729150,0.1862703,84116.0,84107.0,0.1189532]
[1742490729349,0.1268,84116.0,84107.0,0.4797532]
[1742490729549,0.1189496,84110.0,84107.0,0.4797532]
[1742490729854,0.11913018,84108.0,84107.0,0.4797532]
[1742490730158,0.11913018,84108.0,84107.0,0.1189532]
[1742490730349,0.0594606,84130.0,84124.0,0.1189292]
[1742490730549,0.1189242,84128.0,84126.0,0.1189263]
[1742490730748,0.0961,84139.0,84126.0,0.13225857]
[1742490730945,0.0594558,84137.0,84136.0,0.1783648]
[1742490731147,0.38694259,84140.0,84139.0,0.1189079]
[1742490731449,0.50584909,84140.0,84139.0,0.1189079]
[1742490732051,0.1189065,84140.0,84139.0,0.1189079]
[1742490732448,0.1189065,84140.0,84136.0,0.4202554]
[1742490732449,0.0594483,84147.0,84146.0,0.1188966]
[1742490733351,0.1594483,84147.0,84146.0,0.13027586]
[1742490733654,0.1095483,84147.0,84146.0,0.13027586]
[1742490734153,0.0501,84147.0,84146.0,0.13027586]
[1742490734456,0.1188966,84147.0,84146.0,0.13027586]
[1742490735063,0.00017828,84148.0,84147.0,0.1188966]
[1742490735352,0.11907348,84148.0,84147.0,0.1188966]
[1742490735546,0.00017828,84148.0,84147.0,0.1188966]
[1742490735746,0.11907348,84148.0,84147.0,0.1188966]
[1742490738051,0.0594483,84147.0,84134.0,0.3608]
[1742490738250,0.1189136,84135.0,84134.0,0.48728]
[1742490738451,0.1189136,84135.0,84134.0,0.61744529]
[1742490739053,0.2189136,84135.0,84134.0,0.25664529]
[1742490739460,0.1189136,84135.0,84134.0,0.25664529]
[1742490739670,0.1189136,84135.0,84134.0,0.13016529]
[1742490739961,0.1513178,84132.0,84131.0,0.00017828]
[1742490740155,0.1783972,84124.0,84123.0,0.1189294]
[1742490740350,0.1189306,84123.0,84122.0,0.0948]
[1742490740550,0.2118306,84123.0,84122.0,0.213732]
[1742490741057,0.2118306,84123.0,84122.0,0.31631008]
[1742490742161,0.3118306,84123.0,84122.0,0.31631008]
[1742490742462,0.2118306,84123.0,84122.0,0.31631008]
[1742490742850,0.2130306,84123.0,84122.0,0.31631008]
[1742490743053,0.2189306,84123.0,84122.0,0.31631008]
[1742490743259,0.1513306,84123.0,84122.0,0.31631008]
[1742490743455,0.1189306,84123.0,84122.0,0.31631008]
[1742490743761,0.1189306,84123.0,84122.0,0.22481008]
[1742490743963,0.2492306,84123.0,84122.0,0.22481008]
[1742490744147,0.2492306,84123.0,84116.0,0.0594697]
[1742490744148,0.0594702,84117.0,84094.0,0.3608]
[1742490744457,0.0594702,84117.0,84060.0,1.02210271]
[1742490744458,0.1784651,84092.0,84091.0,0.0594874]
[1742490744766,0.1784651,84092.0,84091.0,0.07046895]
[1742490745261,0.1784651,84092.0,84091.0,0.01098155]
[1742490745262,0.2784651,84092.0,84091.0,0.01098155]
[1742490745561,0.1784651,84092.0,84091.0,0.0946]
[1742490745759,0.1796651,84092.0,84091.0,0.20829899]
[1742490745964,0.1784651,84092.0,84091.0,0.20829899]
[1742490746457,0.2784651,84092.0,84091.0,0.01569899]
[1742490746652,0.2784651,84092.0,84070.0,0.14675484]
[1742490746653,0.059502,84072.0,84071.0,0.2447628]
[1742490746853,0.059502,84072.0,84071.0,0.4373628]
[1742490747063,0.1784874,84082.0,84081.0,0.11899]
[1742490747955,0.2108874,84082.0,84081.0,0.12797408]
[1742490748156,0.1189914,84080.0,84079.0,0.2730858]
[1742490748357,0.1507914,84080.0,84079.0,0.0946]
[1742490748548,0.4809914,84080.0,84079.0,0.0946]
[1742490748749,0.6980914,84080.0,84079.0,0.0946]
[1742490749447,0.7656914,84080.0,84079.0,0.0946]
[1742490749655,0.1,84080.0,84076.0,0.0594982]
[1742490749860,0.539273,84087.0,84086.0,0.1189829]
[1742490750262,0.11915608,84090.0,84089.0,0.1189787]
[1742490751765,0.11915608,84090.0,84089.0,0.13215034]
[1742490751949,0.21915608,84090.0,84089.0,0.01317164]
[1742490752260,0.11915558,84090.0,84089.0,0.13215034]
[1742490752652,0.11915558,84090.0,84089.0,0.13315034]
[1742490753357,0.11915558,84090.0,84089.0,0.15777757]
[1742490753557,0.11915558,84090.0,84089.0,0.15877757]
[1742490754158,0.00017838,84090.0,84089.0,0.15877757]
[1742490754354,0.11915558,84090.0,84089.0,0.15877757]
[1742490754560,0.11915558,84090.0,84089.0,0.15677757]
[1742490754753,0.11915558,84090.0,84089.0,0.13214845]
[1742490755857,0.11915558,84090.0,84089.0,0.13215152]
[1742490756158,0.12015558,84090.0,84089.0,0.1189787]
[1742490756657,0.00117838,84090.0,84089.0,0.13315246]
[1742490757049,0.0594712,84115.0,84101.0,0.1189617]
[1742490757050,0.1784418,84102.0,84101.0,0.1189617]
[1742490757467,0.1784418,84102.0,84101.0,0.13211129]
[1742490757761,0.1784418,84102.0,84101.0,0.14305505]
[1742490758265,0.1804418,84102.0,84101.0,0.14305505]
[1742490758865,0.002,84102.0,84101.0,0.14305505]
[1742490759253,0.1209603,84102.0,84101.0,0.1582577]
[1742490759858,0.1209603,84102.0,84101.0,0.2512577]
[1742490760056,0.002,84102.0,84101.0,0.2542577]
[1742490760364,0.002,84102.0,84101.0,0.3443577]
[1742490760758,0.002,84102.0,84101.0,0.3433577]
[1742490761467,0.0594768,84107.0,84106.0,0.1784305]
[1742490761661,0.2540768,84107.0,84106.0,0.1784305]
[1742490761855,0.1540768,84107.0,84106.0,0.1784305]
[1742490763052,0.27303,84107.0,84106.0,0.1784305]
[1742490763464,0.37303,84107.0,84106.0,0.1794305]
[1742490763666,0.27423,84107.0,84106.0,0.001]
[1742490763861,0.37303,84107.0,84106.0,0.001]
[1742490764262,0.1189702,84095.0,84093.0,0.11915098]
[1742490764469,0.2165716,84094.0,84093.0,0.11915098]
[1742490764666,0.3077716,84094.0,84093.0,0.14328676]
[1742490764967,0.3077716,84094.0,84093.0,0.13018405]
[1742490765163,0.4077716,84094.0,84093.0,0.13018405]
[1742490765363,0.3401716,84094.0,84093.0,0.1432786]
[1742490765568,0.3077716,84094.0,84093.0,0.1432786]
[1742490765761,0.3385716,84094.0,84093.0,0.00117838]
[1742490765961,0.5000716,84094.0,84093.0,0.12015138]
[1742490766164,0.5247516,84094.0,84093.0,0.12015138]
[1742490766364,0.6247516,84094.0,84093.0,0.13115536]
[1742490766568,0.5571516,84094.0,84093.0,0.22505536]
[1742490766759,0.6247516,84094.0,84093.0,0.12015138]
[1742490766957,0.5247516,84094.0,84093.0,0.12015138]
[1742490767170,0.6247516,84094.0,84093.0,0.14635418]
[1742490767363,0.4693516,84094.0,84093.0,0.23925418]
[1742490767763,0.5291516,84094.0,84093.0,0.25433266]
[1742490767973,0.5281516,84094.0,84093.0,0.25433266]
[1742490768356,0.4293516,84094.0,84093.0,0.25433266]
[1742490768572,0.4283516,84094.0,84093.0,0.25433266]